Cogmind - Beta 14 @@@ ROGUE MODE // 2024.10.06 @ 15:03:50 Player: Lorraine Result: Destroyed by G-34 Mercenary with Small Laser Performance ------------- Evolutions (1) 500 Regions Visited (2) 400 Robots Destroyed (22) 110 Value Destroyed (678) 678 Prototype IDs (0) 0 Alien Tech Used (0) 0 Bonus (0) 0 TOTAL SCORE: 1688 Bonus ------- None Cogmind --------- Core Integrity 0/400 Matter 250/300 Energy 56/100 System Corruption 0% Temperature Hot (237) Movement Core (50) Location -9/Materials Parts ------- > --- POWER (1) -------- (None) > --- PROPULSION (2) --- (None) > --- UTILITY (4) ------ (None) > --- WEAPON (2) ------- Mini Grenade Launcher > --- INVENTORY (5) ---- Ion Engine Heat Sink Light Assault Rifle Improved Light Cannon Peak State ------------ > --- POWER ------------ Light Ion Engine > --- PROPULSION ------- Aluminum Leg Aluminum Leg > --- UTILITY ---------- Heat Sink Heat Sink Structural Scanner Sensor Array > --- WEAPON ----------- Beam Rifle Light Assault Rifle > --- INVENTORY -------- Light Armor Plating Light Assault Rifle Improved Light Cannon Mining Laser [Rating: 10] Favorites ----------- Power Light Ion Engine Engine Light Ion Engine Propulsion Aluminum Leg Treads Light Treads Leg Aluminum Leg Utility Structural Scanner Device Structural Scanner Storage Small Storage Unit Protection Light Armor Plating Weapon Light Assault Rifle Energy Gun Small Laser Ballistic Gun Light Assault Rifle Launcher Mini Grenade Launcher Special Weapon Mining Laser Build | -11 -10 -9 ------- Run | Yrd Mat Mat Slots Evolved 2 | . . 2 Power . | . . . Propulsion . | . . . Utility 2 | . . 2 Weapon . | . . . Parts Attached 24 | 5 6 13 Power 2 | . 2 . Engine 2 | . 2 . Core . | . . . Reactor . | . . . Propulsion 5 | 2 . 3 Treads 2 | . . 2 Leg 3 | 2 . 1 Wheel . | . . . Hover . | . . . Flight . | . . . Utility 8 | 1 3 4 Device 6 | . 3 3 Storage 1 | 1 . . Processor . | . . . Hackware . | . . . Protection 1 | . . 1 Artifact . | . . . Weapon 9 | 2 1 6 Energy Gun 5 | 1 1 3 Energy Cannon . | . . . Ballistic Gun 1 | 1 . . Ballistic Cannon . | . . . Launcher 1 | . . 1 Special Weapon 2 | . . 2 Impact Weapon . | . . . Slashing Weapon . | . . . Piercing Weapon . | . . . Special Melee Weapon . | . . . Unidentified Prototypes . | . . . Parts Lost 15 | . 1 14 Power 1 | . . 1 Propulsion 4 | . . 4 Utility 5 | . . 5 Weapon 5 | . 1 4 Highest Loss Streak 7 | . 1 7 To Critical Strikes . | . . . Average Slot Usage (%) 84 | . 89 78 Engine 10 | . 11 10 Treads 4 | . . 9 Leg 19 | . 28 10 Device 18 | . 13 24 Storage 4 | . 8 . Protection 1 | . . 3 Energy Gun 11 | . 13 10 Ballistic Gun 10 | . 14 6 Special Weapon 1 | . . 3 Peak Build Rating 10 | 5 7 10 Average Rating 6 | 3 6 7 On Entrance 4 | . 5 7 Naked Turns . | . . . Heaviest Build 13 | 8 13 13 Greatest Support 40 | 20 20 40 Greatest Overweight (x) 1 | . . 1 Average Overweight (x) . | . . . Largest Inventory Capacity 8 | 8 8 5 Average Capacity 6 | 7 6 5 Most Carried 8 | 7 8 5 Average Carried 5 | 5 5 4 Final Capacity 8 | 8 5 5 Final Carried 7 | 7 4 4 Class Distribution -------------------- 72% | Mutant 27% | Scavenger-Mutant Dominant Class ---------------- Mutant | -10/Materials Scavenger-Mutant | -9/Materials Resources | -11 -10 -9 ----------- Run | Yrd Mat Mat Matter Collected 433 | 215 120 98 Remotely . | . . . Salvage Created 745 | . 314 431 Parts 49 | . 23 26 Haulers Intercepted 2 | . . 2 Recyclers Shooed 1 | . 1 . Parts Field Recycled . | . . . Retrieved Matter . | . . . Parts Self-Destructed . | . . . Prevented . | . . . Kills | -11 -10 -9 ------- Run | Yrd Mat Mat Combat Hostiles Destroyed 17 | . 7 10 Guns 10 | . 7 3 Cannons 4 | . . 4 AOE 3 | . . 3 Classes Destroyed 6 | . 2 4 Builder 1 | . . 1 Hauler 2 | . . 2 Recycler 1 | . . 1 Watcher 1 | . 1 . Grunt 14 | . 7 7 Sentry 3 | . . 3 Best Kill Streak 7 | . 2 7 Combat Bots Only 3 | . 2 3 Max Kills in Single Turn 3 | . 1 3 Gunslinging . | . . . Exploded 1 | . . 1 Melee . | . . . Uniques/NPCs Destroyed . | . . . Combat | -11 -10 -9 -------- Run | Yrd Mat Mat Hostile Shots Fired 156 | . 44 112 Missed 38 | . 13 25 Damage Taken 1566 | . 344 1222 Core 505 | . 102 403 Absorbed by Shields . | . . . Core Remaining (%) 79 | 100 59 . Volleys Fired 70 | . 32 38 Largest 2 | . 2 2 Hottest 200 | . 60 200 Shots Fired 124 | . 58 66 Gun 110 | . 58 52 Cannon . | . . . Launcher 5 | . . 5 Special 9 | . . 9 Kinetic 45 | . 32 13 Thermal 62 | . 14 48 Explosive 5 | . . 5 Electromagnetic 12 | . 12 . Robot Hit Streak 15 | . 15 14 Robot Miss Streak 3 | . 3 3 Penetration Max . | . . . Secondary Targets 2 | . 2 . Max Gunslinging Chain 1 | . 1 . Shots Hit Robots 84 | . 37 47 Core Hits 41 | . 16 25 Critical Kills . | . . . Critical Parts Destroyed . | . . . Critical Strikes 2 | . . 2 Burn 2 | . . 2 Melee Attacks . | . . . Impact . | . . . Slashing . | . . . Piercing . | . . . Sneak Attacks . | . . . Combat Hostiles . | . . . Follow-up Attacks . | . . . Damage Inflicted 1455 | . 351 1104 Guns 789 | . 350 439 Cannons . | . . . Explosions 497 | . . 497 Melee . | . . . Ramming 1 | . 1 . Kinetic 228 | . 158 70 Thermal 659 | . 122 537 Explosive 497 | . . 497 Electromagnetic 70 | . 70 . Impact . | . . . Slashing . | . . . Piercing . | . . . Highest Corruption 1 | . 1 . Average Corruption 1 | . 1 . Corruption Purged . | . . . Corruption Blocked . | . . . Effects 2 | . 2 . Message Errors 1 | . 1 . Matter Fused 1 | . 1 . Overload Shots . | . . . Overflow Damage . | . . . Projectiles . | . . . Explosions . | . . . Melee . | . . . Knockbacks . | . . . Impact . | . . . Kinetic . | . . . Secondary . | . . . Self-Inflicted Damage 37 | . . 37 Shots 2 | . . 2 Rammed . | . . . Targets Rammed 1 | . 1 . Kicked 1 | . 1 . Crushed . | . . . Highest Temperature 282 | . 84 282 Average Temperature 58 | . 25 84 Received Heat Transfer 819 | . 192 627 Siege Activations . | . . . Robots Corrupted . | . . . Combat Hostiles . | . . . Parts Fried . | . . . Impact Corruptions . | . . . Robots Melted . | . . . Combat Hostiles . | . . . Parts Melted 3 | . . 3 Heat Transferred 1655 | . 275 1380 Parts Sabotaged . | . . . Parts Stolen . | . . . Parts Stripped . | . . . Power Chain Reactions . | . . . Alert | -11 -10 -9 ------- Run | Yrd Mat Mat Peak Influence 323 | . 218 323 Initial 91 | . . 91 Average 113 | . 92 164 Maximum Alert Level 1 | . 1 1 Low Security (%) 83 | 100 98 64 Level 1 16 | . 1 35 Level 2 . | . . . Level 3 . | . . . Level 4 . | . . . Level 5 . | . . . High Security . | . . . Max Security . | . . . Squads Dispatched 3 | . 2 1 Investigation 2 | . 2 . Extermination . | . . . Reinforcement 1 | . . 1 Assault . | . . . Garrison . | . . . Intercept . | . . . Searches Triggered . | . . . Construction Impeded . | . . . Haulers Reinforced . | . . . Active Scanning Responses . | . . . Cargo Convoy Interrupts . | . . . Stealth | -11 -10 -9 --------- Run | Yrd Mat Mat Distress Signals . | . . . Communications Jammed . | . . . Distress Signals . | . . . Times Spotted 25 | . 11 14 Peak Tracking Total 5 | . 4 5 Tactical Retreats 1 | . 1 . Traps | -11 -10 -9 ------- Run | Yrd Mat Mat Traps Triggered 2 | . 2 . Indirectly . | . . . Trap Hack Attempts . | . . . Triggered . | . . . Disarmed . | . . . Reprogrammed . | . . . Reused . | . . . Traps Extracted . | . . . Installed . | . . . Triggered . | . . . Machines | -11 -10 -9 ---------- Run | Yrd Mat Mat Machines Disabled 1 | . . 1 Max in Single Turn 1 | . . 1 Machines Repaired . | . . . Machines Dismantled . | . . . Machines Sabotaged . | . . . Overloaded Fab Kills . | . . . Hacking | -11 -10 -9 --------- Run | Yrd Mat Mat Machines Accessed 4 | . 2 2 Terminals 3 | . 1 2 Fabricators . | . . . Repair Stations . | . . . Recycling Units 1 | . 1 . Scanalyzers . | . . . Garrison Access . | . . . Total Hacks 16 | . 9 7 Successful 11 | . 7 4 Failed 5 | . 2 3 Catastrophic . | . . . Database Lockouts . | . . . Manual . | . . . Terminals 10 | . 3 7 Fabricators . | . . . Repair Stations . | . . . Recycling Units 6 | . 6 . Scanalyzers . | . . . Garrison Access . | . . . Terminal Hacks 6 | . 2 4 Dispatch Records 2 | . 1 1 Maintenance Status 1 | . 1 . Investigation Status 1 | . . 1 Hauler Manifests 1 | . . 1 Zone Layout 1 | . . 1 Fabricator Hacks . | . . . Repair Station Hacks . | . . . Recycling Unit Hacks 5 | . 5 . Recycle Component 2 | . 2 . Process 1 | . 1 . Report Inventory 1 | . 1 . Retrieve Matter 1 | . 1 . Scanalyzer . | . . . Garrison Access Hacks . | . . . Unauthorized Hacks . | . . . Terminals . | . . . Fabricators . | . . . Repair Stations . | . . . Recycling Units . | . . . Scanalyzers . | . . . Garrison Access . | . . . Data Cores Recovered . | . . . Used . | . . . Hacking Detections 4 | . 2 2 Full Trace Events 1 | . 1 . Feedback Events . | . . . Feedback Blocked . | . . . Robot Schematics Acquired . | . . . Robots Built . | . . . Authchips . | . . . Time . | . . . Total Robot Build Rating . | . . . Part Schematics Acquired . | . . . Parts Built . | . . . Authchips . | . . . Time . | . . . Total Part Build Rating . | . . . Parts Repaired . | . . . Time . | . . . Parts Recycled 2 | . 2 . Recycled Matter 223 | . 223 . Retrieved Matter 223 | . 223 . Retrieved Components . | . . . Parts Scanalyzed . | . . . Part Schematics Acquired . | . . . Parts Damaged . | . . . Bothacking | -11 -10 -9 ------------ Run | Yrd Mat Mat Used RIF Installer . | . . . Robots Hacked . | . . . Non-combat . | . . . Combat . | . . . Robot Hacks Applied . | . . . Relay Couplers Released . | . . . Fabnet Peak Effective % . | . . . Robots Rewired . | . . . Allies Hacked . | . . . Hacks Repelled . | . . . Allies | -11 -10 -9 -------- Run | Yrd Mat Mat Total Allies . | . . . Largest Group . | . . . Highest-Rated Group . | . . . Highest-Rated Ally . | . . . Total Orders . | . . . Ally Attacks . | . . . Total Damage . | . . . Kills . | . . . Allies Corrupted . | . . . Allies Melted . | . . . Intel | -11 -10 -9 ------- Run | Yrd Mat Mat Robot Analysis Total . | . . . Derelict Logs Recovered . | . . . Drone Launches . | . . . Drone Recoveries . | . . . Exploration | -11 -10 -9 ------------- Run | Yrd Mat Mat Turns Passed 765 | 87 344 334 Spaces Moved 398 | 72 197 129 Core 20 | 19 . 1 Treads 35 | . . 35 Legs 343 | 53 197 93 Wheels . | . . . Hover . | . . . Flight . | . . . Fastest Speed 50 | 50 120 50 Average Speed 120 | 101 120 133 Slowest Speed 190 | 120 120 190 Overloaded Moves . | . . . Propulsion Burnouts . | . . . Robots Hopped . | . . . Cave-ins Triggered . | . . . Exploration Rate (%) 15 | 5 24 18 Regions Visited 2 Branch Regions . Pre-discovered Areas . | . . . Known Exits Taken . | . . . Unknown Exits Taken 2 | 1 1 . Scrap Searched . | . . . Spaces Dug . | . . . Terrain Destroyed 16 | . . 16 Melee . | . . . Projectile 1 | . . 1 AOE 15 | . . 15 Terrain Rammed . | . . . Walls Destroyed . | . . . Machines Disabled . | . . . Actions | -11 -10 -9 --------- Run | Yrd Mat Mat Total 546 | 84 254 208 Wait 27 | . 7 20 Move 396 | 71 196 129 Hop . | . . . Pick Up 20 | 8 7 5 Fast Attach 10 | 4 1 5 Attach 9 | 1 3 5 Detach . | . . . Swap 5 | . 2 3 Drop 8 | . 5 3 Fire 70 | . 32 38 Melee . | . . . Ram . | . . . Kick 1 | . 1 . Crush . | . . . Escape Stasis . | . . . Rewire . | . . . Trap . | . . . Miscellaneous . | . . . Route ------- -11/Scrapyard -10/Materials -9/Materials History --------- Turn | Location | Event 20 | -11/Scrapyard | Discovered new exit (range 15) 88 | -11/Scrapyard | Entered Materials 276 | -10/Materials | Discovered new exit (range 10) 309 | -10/Materials | Build established: Mutant 432 | -10/Materials | Entered another Materials area 432 | -9/Materials | Evolved 2 slots: Utility x2 713 | -9/Materials | Lost 5 parts (3u2w) 743 | -9/Materials | Core integrity fell below 50% 757 | -9/Materials | Core integrity fell below 20% 766 | -9/Materials | Destroyed by G-34 Mercenary with Small Laser Last Messages --------------- K-01 Serf cleans the Electrolysis Chamber. Sml. Laser destroyed. Lgt. Nuclear Core melted. G-47 Trooper destroyed. Electrolysis Chamber disabled. A-02 Transporter suffers critical hit (Burn). A-02 Transporter destroyed. K-01 Serf collects debris. R-06 Scavenger collects Heat Sink. G-34 Mercenary destroyed. Beam Rifle destroyed. K-01 Serf collects debris. U-05 Engineer lays Concrete. Structural Scanner destroyed. Y-45 Defender destroyed. U-05 Engineer lays Concrete. R-06 Scavenger collects Prototype Engine. R-06 Scavenger destroyed. A-02 Transporter destroyed. U-05 Engineer destroyed. Map ----- +----------------------------------------------------+ | ??????????????? % T + #? | | ??????????????? ### # #? | | ??????????????????########## ### # #? | | ??????????????????############+###### #########? | | ??????????????????#??????## ## # #?? | | ??????????????????#??????## ""## + #?? | | ??????????????????#??????## ! T"## # #?? | | ??????????????????###????## !!] ""## # #?? | | ?????????????????? #????## !!] ## # #?? | | ?????????????????? #????## # # #?? | | ?????????????????? #????## ## ########?? | | ?????????????????? #????## ## ##?#####?? | | ?????????????????? #????## ## ##???????? | | ?????????????????? #????#####+###### ########## | | ?????????????????? #????##### ###### ########## | | ?????????????????? #???????## ##??## ### """" # | | ??????????????????###???????## ###### ### ""T" # | | ??????????????????#???????#### ###### ### # | | ??????????????????#???????#### #### # # | | ??????????????????#???????## # # | | ??????????????????########## |! =#% # | | ??????????????????######### =%= % +! [ # | | ??????????????????? * *=== = #%""" # | | ?????????????????????##### *%*%!%[! # """ # | | ?????????????????????##### * =]# # """ # | | ??????????????????????## @ g ###+#### """ # | | ??????????????????????## *!% k # """ # | | ??????????????????????## * = """ =/ # # | | ??????????????????????##=[ """ =/ ######## | | ??????????????????????##%""= #""" ######## | | ??????????????????????##!"T [ # ##?????? | | ??????????????????????##="" # """ ##?????? | | ??????????????????????## # R" ##?????? | | ??????????????????????## ######### """ ##?????? | | ??????????????????????############! ##?????? | | ??????????????????????####??????### ########?????? | | ????????????????????????????????############?????? | | ?????????????????????????????????####????????????? | | ?????????????????????????????????????????????????? | | ?????????????????????????????????????????????????? | | ?????????????????????????????????????????????????? | | ?????????????????????????????????????????????????? | | ?????????????????????????????????????????????????? | | ?????????????????????????????????????????????????? | | ?????????????????????????????????????????????????? | | ?????????????????????????????????????????????????? | | ?????????????????????????????????????????????????? | | ?????????????????????????????????????????????????? | | ?????????????????????????????????????????????????? | | ?????????????????????????????????????????????????? | +----------------------------------------------------+ Best States ------------- Heat Dissipation 38 Energy Generation 10 Energy Capacity 250 Matter Stores 300 Matter Capacity 300 Sight Range 16 Robot Scan Range 14 Terrain Scan Density 10 Armor Coverage 150 Evasion (%) 55 Recoil Reduction 2 Item Schematics ----------------- None Robot Schematics ------------------ None Fabricated ------------ Nothing Alien Tech Used ----------------- None Achievements -------------- Shopping List Challenges ------------ None Game ------ Seed LayeredAntimissileSpiker Manual? 0 Play Time 00:28:43 Cumulative 3.9 hours Start 2024.10.06 @ 14:33:33 End 2024.10.06 @ 15:03:50 Sessions 1 Manual Loads 0 Difficulty Rogue Special Mode None Game No. 4 Rogue 4 Adventurer 0 Explorer 0 Win Type - Total 0 Types 0/0/0/0/0/0/0/0/0 Lore% 2 Gallery% 7 Achievement% 8 Wizard Run 0 Options --------- Layout 1 ASCII 1 Keyboard 0 Movement Mouse Keybinds 0 Fullscreen 1 Font 24/Smallcaps Map View 50x35 Zoom Use 0% Tactical HUD 0 Map Filters NONE Filters NONE Steam 1 RUN: 61873aed-aa35-405f-8cc0-508e121ed31a